[Event "Early-Titled-Tuesday-Blitz-April-02-2024"]
[Site "Chess.com"]
[Date "2024.04.02"]
[Round "5"]
[White "NowInChess"]
[Black "olakenn"]
[Result "1-0"]
[WhiteElo "2250"]
[BlackElo "1994"]
[TimeControl "180+1"]
[EndTime "8:56:14 PDT"]
[Termination "NowInChess won by resignation"]

1. e4 {[%clk 0:03:00.9]} 1... c6 {[%clk 0:02:54.2]} 2. d4 {[%clk 0:03:00.4]}
2... d5 {[%clk 0:02:53.7]} 3. exd5 {[%clk 0:03:01.3]} 3... cxd5 {[%clk
0:02:53.7]} 4. c4 {[%clk 0:03:02.2]} 4... Nf6 {[%clk 0:02:53.2]} 5. Nc3 {[%clk
0:03:02.5]} 5... Nc6 {[%clk 0:02:53.3]} 6. Bf4 {[%clk 0:03:01.9]} 6... e6 {[%clk
0:02:52.1]} 7. c5 {[%clk 0:03:01.4]} 7... Be7 {[%clk 0:02:45.7]} 8. Nf3 {[%clk
0:03:00.8]} 8... O-O {[%clk 0:02:41.9]} 9. Bb5 {[%clk 0:03:00.1]} 9... Bd7
{[%clk 0:02:39.3]} 10. O-O {[%clk 0:02:59.4]} 10... Nh5 {[%clk 0:02:28.4]} 11.
Be3 {[%clk 0:02:46.4]} 11... Nf6 {[%clk 0:02:27.4]} 12. Bxc6 {[%clk 0:02:43.7]}
12... Bxc6 {[%clk 0:02:26.9]} 13. Ne5 {[%clk 0:02:44.4]} 13... Nd7 {[%clk
0:02:24]} 14. f4 {[%clk 0:02:34.6]} 14... f5 {[%clk 0:02:08.7]} 15. b4 {[%clk
0:02:29]} 15... Nxe5 {[%clk 0:02:06]} 16. dxe5 {[%clk 0:02:28.9]} 16... Be8
{[%clk 0:01:54.6]} 17. a4 {[%clk 0:02:19.6]} 17... b6 {[%clk 0:01:48.1]} 18. Nb5
{[%clk 0:01:58.1]} 18... bxc5 {[%clk 0:01:37.6]} 19. Bxc5 {[%clk 0:01:45.6]}
19... a6 {[%clk 0:01:25.7]} 20. Nd4 {[%clk 0:01:36.2]} 20... Bxc5 {[%clk
0:01:19.7]} 21. bxc5 {[%clk 0:01:37.1]} 21... Bf7 {[%clk 0:01:16.7]} 22. Qc2
{[%clk 0:01:20.2]} 22... Qc7 {[%clk 0:01:11.8]} 23. Rfc1 {[%clk 0:01:07.7]}
23... Rfb8 {[%clk 0:01:10.6]} 24. Rab1 {[%clk 0:00:54.8]} 24... Rxb1 {[%clk
0:01:07.1]} 25. Rxb1 {[%clk 0:00:54.2]} 25... Rb8 {[%clk 0:01:01.6]} 26. Rxb8+
{[%clk 0:00:53.7]} 26... Qxb8 {[%clk 0:01:01.6]} 27. Qb3 {[%clk 0:00:53.8]}
27... Qxb3 {[%clk 0:00:53]} 28. Nxb3 {[%clk 0:00:54.7]} 28... Kf8 {[%clk
0:00:48.8]} 29. Kf2 {[%clk 0:00:44.5]} 29... Ke8 {[%clk 0:00:48.3]} 30. Ke3
{[%clk 0:00:43.4]} 30... Kd7 {[%clk 0:00:48.3]} 31. Nd4 {[%clk 0:00:43.3]} 31...
Kc7 {[%clk 0:00:44.5]} 32. Kd3 {[%clk 0:00:41.4]} 32... a5 {[%clk 0:00:32.4]}
33. Nb5+ {[%clk 0:00:38.8]} 33... Kc6 {[%clk 0:00:25.5]} 34. Nd6 {[%clk
0:00:37.1]} 34... Bg8 {[%clk 0:00:24.9]} 35. Kd4 {[%clk 0:00:35.7]} 35... h6
{[%clk 0:00:22.6]} 36. h4 {[%clk 0:00:23.7]} 36... g6 {[%clk 0:00:19.4]} 37. Nb5
{[%clk 0:00:19.2]} 37... Bf7 {[%clk 0:00:16.2]} 38. Nc3 {[%clk 0:00:18.8]} 38...
Be8 {[%clk 0:00:15.7]} 39. Na2 {[%clk 0:00:16.3]} 39... Bd7 {[%clk 0:00:15.6]}
40. Nc1 {[%clk 0:00:15.8]} 40... Bc8 {[%clk 0:00:15.8]} 41. Nb3 {[%clk
0:00:15.8]} 41... Bd7 {[%clk 0:00:10.6]} 42. Nxa5+ {[%clk 0:00:16.2]} 42... Kc7
{[%clk 0:00:10.6]} 43. Nb3 {[%clk 0:00:09.5]} 43... Bxa4 {[%clk 0:00:10.1]} 44.
Nd2 {[%clk 0:00:10]} 44... Bb5 {[%clk 0:00:07.6]} 45. Kc3 {[%clk 0:00:09.7]}
45... Kc6 {[%clk 0:00:07.6]} 46. Kb4 {[%clk 0:00:09.4]} 46... Be2 {[%clk
0:00:06.6]} 47. g3 {[%clk 0:00:07.6]} 47... Bd3 {[%clk 0:00:05.9]} 48. Nf3
{[%clk 0:00:06.6]} 48... Be2 {[%clk 0:00:05.9]} 49. Nd4+ {[%clk 0:00:07]} 49...
Kc7 {[%clk 0:00:05.2]} 50. Nxe2 {[%clk 0:00:07.9]} 50... Kc6 {[%clk 0:00:05.6]}
51. Nd4+ {[%clk 0:00:08.6]} 51... Kc7 {[%clk 0:00:05.4]} 52. Kb5 {[%clk
0:00:09.1]} 52... Kb7 {[%clk 0:00:05.2]} 53. Nxe6 {[%clk 0:00:08.9]} 1-0

[Event "Early-Titled-Tuesday-Blitz-April-02-2024"]
[Site "Chess.com"]
[Date "2024.04.02"]
[Round "5"]
[White "SteinerPro12"]
[Black "agvania123"]
[Result "0-1"]
[WhiteElo "2212"]
[BlackElo "2417"]
[TimeControl "180+1"]
[EndTime "8:56:16 PDT"]
[Termination "agvania123 won on time"]

1. e4 {[%clk 0:02:57.7]} 1... d5 {[%clk 0:02:59]} 2. exd5 {[%clk 0:02:57.2]}
2... Qxd5 {[%clk 0:02:59.9]} 3. Nc3 {[%clk 0:02:57.5]} 3... Qd8 {[%clk
0:02:59.8]} 4. d4 {[%clk 0:02:53.9]} 4... Nf6 {[%clk 0:02:59.9]} 5. g3 {[%clk
0:02:47.9]} 5... c6 {[%clk 0:02:55.5]} 6. Bg2 {[%clk 0:02:48]} 6... g6 {[%clk
0:02:55.5]} 7. Nge2 {[%clk 0:02:46.1]} 7... Bg7 {[%clk 0:02:55.2]} 8. O-O {[%clk
0:02:45.6]} 8... O-O {[%clk 0:02:55.2]} 9. Be3 {[%clk 0:02:43.5]} 9... Nbd7
{[%clk 0:02:53.7]} 10. Nf4 {[%clk 0:02:35.8]} 10... Nb6 {[%clk 0:02:49.9]} 11.
Nd3 {[%clk 0:02:32.5]} 11... Nfd5 {[%clk 0:02:48.1]} 12. Nxd5 {[%clk 0:02:30.7]}
12... Nxd5 {[%clk 0:02:49]} 13. c4 {[%clk 0:02:30.2]} 13... Nxe3 {[%clk
0:02:46.9]} 14. fxe3 {[%clk 0:02:30.9]} 14... Bf5 {[%clk 0:02:43.1]} 15. Nc5
{[%clk 0:02:23.4]} 15... b6 {[%clk 0:02:41]} 16. Nb3 {[%clk 0:02:22.8]} 16...
Qd7 {[%clk 0:02:35.3]} 17. a4 {[%clk 0:02:21.8]} 17... Bh3 {[%clk 0:02:12.2]}
18. a5 {[%clk 0:02:11.6]} 18... Bxg2 {[%clk 0:02:10.3]} 19. Kxg2 {[%clk
0:02:12.1]} 19... e5 {[%clk 0:02:08.5]} 20. d5 {[%clk 0:02:05.2]} 20... e4
{[%clk 0:02:02.1]} 21. Qd2 {[%clk 0:02:02.6]} 21... cxd5 {[%clk 0:02:01.5]} 22.
cxd5 {[%clk 0:02:02.3]} 22... Rfd8 {[%clk 0:02:02]} 23. Rfd1 {[%clk 0:02:01]}
23... Rac8 {[%clk 0:01:59.9]} 24. axb6 {[%clk 0:01:59.7]} 24... axb6 {[%clk
0:01:59.6]} 25. Rac1 {[%clk 0:01:37]} 25... Rxc1 {[%clk 0:01:56.7]} 26. Qxc1
{[%clk 0:01:37.2]} 26... Qg4 {[%clk 0:01:54.9]} 27. d6 {[%clk 0:00:40.3]} 27...
Qf3+ {[%clk 0:01:54.1]} 28. Kg1 {[%clk 0:00:40.7]} 28... Bxb2 {[%clk 0:01:44.2]}
29. Qd2 {[%clk 0:00:33]} 29... Bc3 {[%clk 0:01:40.3]} 30. Qf2 {[%clk 0:00:32.7]}
30... Qxf2+ {[%clk 0:01:37.3]} 31. Kxf2 {[%clk 0:00:32.3]} 31... Rd7 {[%clk
0:01:37.8]} 32. Rd5 {[%clk 0:00:28.6]} 32... f5 {[%clk 0:01:34.4]} 33. Nd4
{[%clk 0:00:19.5]} 33... Bxd4 {[%clk 0:01:33.1]} 34. Rxd4 {[%clk 0:00:18.8]}
34... Kf7 {[%clk 0:01:33.1]} 35. g4 {[%clk 0:00:15.7]} 35... Ke6 {[%clk
0:01:32.6]} 36. gxf5+ {[%clk 0:00:15.8]} 36... gxf5 {[%clk 0:01:33.5]} 37. Kg3
{[%clk 0:00:16.3]} 37... Rxd6 {[%clk 0:01:33.8]} 38. Rb4 {[%clk 0:00:16.3]}
38... Rd1 {[%clk 0:01:13.4]} 39. Rxb6+ {[%clk 0:00:14.1]} 39... Ke5 {[%clk
0:01:13.3]} 40. Rb5+ {[%clk 0:00:14.6]} 40... Kf6 {[%clk 0:01:13.2]} 41. Rb6+
{[%clk 0:00:13.5]} 41... Kg5 {[%clk 0:01:04.1]} 42. Rb8 {[%clk 0:00:13.2]} 42...
Rg1+ {[%clk 0:01:01.2]} 43. Kf2 {[%clk 0:00:12.3]} 43... Rg4 {[%clk 0:00:58.1]}
44. Rh8 {[%clk 0:00:09.9]} 44... Kh6 {[%clk 0:00:35.5]} 45. Rf8 {[%clk
0:00:08.1]} 45... Rg5 {[%clk 0:00:34.5]} 46. h4 {[%clk 0:00:05.9]} 46... Rg4
{[%clk 0:00:31.4]} 47. Rxf5 {[%clk 0:00:05]} 47... Rxh4 {[%clk 0:00:32]} 48. Kg3
{[%clk 0:00:04]} 48... Rh1 {[%clk 0:00:30.1]} 49. Rf4 {[%clk 0:00:03]} 49...
Rg1+ {[%clk 0:00:30.3]} 50. Kf2 {[%clk 0:00:02.9]} 50... Rb1 {[%clk 0:00:27.7]}
51. Rxe4 {[%clk 0:00:03.2]} 51... Kg5 {[%clk 0:00:27.9]} 52. Re5+ {[%clk
0:00:03.2]} 52... Kg4 {[%clk 0:00:28.2]} 53. Re7 {[%clk 0:00:03.2]} 53... h5
{[%clk 0:00:28]} 54. Rg7+ {[%clk 0:00:02.7]} 54... Kh3 {[%clk 0:00:22.9]} 55. e4
{[%clk 0:00:02.6]} 55... h4 {[%clk 0:00:23.3]} 56. e5 {[%clk 0:00:02.7]} 56...
Rb5 {[%clk 0:00:22.2]} 57. Rg5 {[%clk 0:00:02.1]} 57... Kh2 {[%clk 0:00:20.5]}
58. Rf5 {[%clk 0:00:01.2]} 58... h3 {[%clk 0:00:20.3]} 0-1

[Event "Early-Titled-Tuesday-Blitz-April-02-2024"]
[Site "Chess.com"]
[Date "2024.04.02"]
[Round "5"]
[White "AnaKuchava"]
[Black "visa"]
[Result "1/2-1/2"]
[WhiteElo "2179"]
[BlackElo "2370"]
[TimeControl "180+1"]
[EndTime "8:56:16 PDT"]
[Termination "Game drawn - insufficient material"]

1. d4 {[%clk 0:03:00.9]} 1... Nf6 {[%clk 0:02:43.6]} 2. Nf3 {[%clk 0:03:00.6]}
2... e6 {[%clk 0:02:43.6]} 3. c4 {[%clk 0:02:59.1]} 3... c5 {[%clk 0:02:43.7]}
4. d5 {[%clk 0:02:56.5]} 4... exd5 {[%clk 0:02:44]} 5. cxd5 {[%clk 0:02:57.4]}
5... d6 {[%clk 0:02:44.4]} 6. Nc3 {[%clk 0:02:57.7]} 6... g6 {[%clk 0:02:44.5]}
7. e4 {[%clk 0:02:56.7]} 7... Bg7 {[%clk 0:02:44.5]} 8. Bd3 {[%clk 0:02:54.3]}
8... O-O {[%clk 0:02:44.1]} 9. O-O {[%clk 0:02:54.9]} 9... Bg4 {[%clk
0:02:40.6]} 10. a4 {[%clk 0:02:52.1]} 10... Nbd7 {[%clk 0:02:37.8]} 11. Bf4
{[%clk 0:02:46.7]} 11... Qe7 {[%clk 0:02:34.7]} 12. h3 {[%clk 0:02:44.2]} 12...
Bxf3 {[%clk 0:02:34.5]} 13. Qxf3 {[%clk 0:02:45.1]} 13... Ne5 {[%clk 0:02:34.9]}
14. Bxe5 {[%clk 0:02:44.1]} 14... Qxe5 {[%clk 0:02:33.8]} 15. Qe3 {[%clk
0:02:32]} 15... Rfe8 {[%clk 0:02:17.8]} 16. Rfe1 {[%clk 0:02:17.9]} 16... Nh5
{[%clk 0:02:03.3]} 17. Bf1 {[%clk 0:02:09.4]} 17... a6 {[%clk 0:01:53]} 18. g3
{[%clk 0:02:07.4]} 18... Qd4 {[%clk 0:01:30.8]} 19. Rad1 {[%clk 0:01:55.2]}
19... Qxe3 {[%clk 0:01:23.5]} 20. Rxe3 {[%clk 0:01:54]} 20... Bd4 {[%clk
0:01:24.1]} 21. Ree1 {[%clk 0:01:32.9]} 21... Nxg3 {[%clk 0:01:21.1]} 22. a5
{[%clk 0:01:06.3]} 22... Bxc3 {[%clk 0:01:15.2]} 23. bxc3 {[%clk 0:01:04.4]}
23... Nxe4 {[%clk 0:01:15]} 24. c4 {[%clk 0:01:02]} 24... Ng5 {[%clk 0:01:00.2]}
25. Bg2 {[%clk 0:01:01.5]} 25... f5 {[%clk 0:00:50.5]} 26. h4 {[%clk 0:00:57.7]}
26... Nf7 {[%clk 0:00:50.1]} 27. Re6 {[%clk 0:00:58.4]} 27... Kf8 {[%clk
0:00:42.1]} 28. Rde1 {[%clk 0:00:57.3]} 28... Rad8 {[%clk 0:00:38.3]} 29. h5
{[%clk 0:00:50.4]} 29... Ng5 {[%clk 0:00:30.5]} 30. Rf6+ {[%clk 0:00:44]} 30...
Kg7 {[%clk 0:00:19]} 31. Rxe8 {[%clk 0:00:43.3]} 31... Rxe8 {[%clk 0:00:19.7]}
32. Rxd6 {[%clk 0:00:43.6]} 32... Re7 {[%clk 0:00:14.7]} 33. Rb6 {[%clk
0:00:38.8]} 33... gxh5 {[%clk 0:00:13.7]} 34. d6 {[%clk 0:00:37.5]} 34... Rd7
{[%clk 0:00:09.3]} 35. Rxb7 {[%clk 0:00:37.7]} 35... Rxb7 {[%clk 0:00:07.2]} 36.
Bxb7 {[%clk 0:00:38.6]} 36... Kf6 {[%clk 0:00:06.1]} 37. Bxa6 {[%clk 0:00:36.8]}
37... Ke6 {[%clk 0:00:06.3]} 38. Bc8+ {[%clk 0:00:25.2]} 38... Kxd6 {[%clk
0:00:06.3]} 39. Bxf5 {[%clk 0:00:25.4]} 39... h6 {[%clk 0:00:05.5]} 40. Kg2
{[%clk 0:00:12.5]} 40... Nf7 {[%clk 0:00:04.3]} 41. Bg6 {[%clk 0:00:12.5]} 41...
Ne5 {[%clk 0:00:04.3]} 42. Bxh5 {[%clk 0:00:11.3]} 42... Nxc4 {[%clk 0:00:04.6]}
43. a6 {[%clk 0:00:11.6]} 43... Kc6 {[%clk 0:00:04.6]} 44. Be2 {[%clk 0:00:12]}
44... Nd6 {[%clk 0:00:03.5]} 45. f4 {[%clk 0:00:11.8]} 45... Kb6 {[%clk
0:00:03.6]} 46. Kf3 {[%clk 0:00:10.2]} 46... c4 {[%clk 0:00:03.4]} 47. Bxc4
{[%clk 0:00:08.9]} 47... Nxc4 {[%clk 0:00:03.1]} 48. Kg4 {[%clk 0:00:09]} 48...
Kxa6 {[%clk 0:00:02.2]} 49. Kh5 {[%clk 0:00:09.3]} 49... Kb6 {[%clk 0:00:02.8]}
50. Kxh6 {[%clk 0:00:09.7]} 50... Kc6 {[%clk 0:00:03.5]} 51. f5 {[%clk
0:00:10.6]} 51... Kd7 {[%clk 0:00:04.1]} 52. Kg6 {[%clk 0:00:11.5]} 52... Ke8
{[%clk 0:00:04.5]} 53. f6 {[%clk 0:00:12.4]} 53... Kf8 {[%clk 0:00:04.9]} 54. f7
{[%clk 0:00:11.1]} 54... Nd6 {[%clk 0:00:05.8]} 55. Kf6 {[%clk 0:00:11.5]} 55...
Nxf7 {[%clk 0:00:06.6]} 1/2-1/2

[Event "Early-Titled-Tuesday-Blitz-April-02-2024"]
[Site "Chess.com"]
[Date "2024.04.02"]
[Round "5"]
[White "Saxar85"]
[Black "Rawnsdale"]
[Result "1-0"]
[WhiteElo "2743"]
[BlackElo "2557"]
[TimeControl "180+1"]
[EndTime "8:56:17 PDT"]
[Termination "Saxar85 won by checkmate"]

1. e4 {[%clk 0:03:00.9]} 1... c6 {[%clk 0:02:43.6]} 2. d4 {[%clk 0:02:59.7]}
2... d5 {[%clk 0:02:44.5]} 3. exd5 {[%clk 0:02:57.3]} 3... cxd5 {[%clk
0:02:45.4]} 4. Bd3 {[%clk 0:02:55.1]} 4... Nc6 {[%clk 0:02:45.5]} 5. c3 {[%clk
0:02:54.5]} 5... Nf6 {[%clk 0:02:45.9]} 6. h3 {[%clk 0:02:53.3]} 6... g6 {[%clk
0:02:46.1]} 7. Nf3 {[%clk 0:02:52.3]} 7... Bg7 {[%clk 0:02:46.4]} 8. Bf4 {[%clk
0:02:51]} 8... O-O {[%clk 0:02:46.5]} 9. O-O {[%clk 0:02:50.4]} 9... Bf5 {[%clk
0:02:46.1]} 10. Bxf5 {[%clk 0:02:45.7]} 10... gxf5 {[%clk 0:02:47]} 11. Nbd2
{[%clk 0:02:45.2]} 11... e6 {[%clk 0:02:46.5]} 12. Ne5 {[%clk 0:02:41.2]} 12...
Nxe5 {[%clk 0:02:44.9]} 13. dxe5 {[%clk 0:02:40.7]} 13... Ne4 {[%clk 0:02:21.3]}
14. Nb3 {[%clk 0:02:40.1]} 14... Rc8 {[%clk 0:02:17.3]} 15. Qh5 {[%clk
0:02:15.4]} 15... Qc7 {[%clk 0:02:05.9]} 16. Rae1 {[%clk 0:02:11]} 16... Bxe5
{[%clk 0:01:50.7]} 17. Bxe5 {[%clk 0:01:38.4]} 17... Qxe5 {[%clk 0:01:51.6]} 18.
f3 {[%clk 0:01:35]} 18... Ng3 {[%clk 0:01:49.5]} 19. Qh4 {[%clk 0:01:29.9]}
19... Qg7 {[%clk 0:01:42.5]} 20. Rf2 {[%clk 0:01:29.9]} 20... Rc4 {[%clk
0:01:42.2]} 21. Qe7 {[%clk 0:01:20.1]} 21... Rfc8 {[%clk 0:01:04.1]} 22. Qxb7
{[%clk 0:01:11.4]} 22... R4c7 {[%clk 0:00:49.2]} 23. Qa6 {[%clk 0:01:11]} 23...
Kh8 {[%clk 0:00:43.4]} 24. Nd4 {[%clk 0:01:07.5]} 24... Rg8 {[%clk 0:00:43]} 25.
Qd6 {[%clk 0:01:01.8]} 25... Rb7 {[%clk 0:00:35.5]} 26. a4 {[%clk 0:00:50.9]}
26... Rb6 {[%clk 0:00:27.7]} 27. Qe5 {[%clk 0:00:46.7]} 27... Qxe5 {[%clk
0:00:20.3]} 28. Rxe5 {[%clk 0:00:46.5]} 28... Rgb8 {[%clk 0:00:21]} 29. Ne2
{[%clk 0:00:45.5]} 29... Nh5 {[%clk 0:00:19.1]} 30. b4 {[%clk 0:00:42.5]} 30...
a5 {[%clk 0:00:18.5]} 31. b5 {[%clk 0:00:41.1]} 31... Rc8 {[%clk 0:00:18.3]} 32.
g4 {[%clk 0:00:40.1]} 32... Ng7 {[%clk 0:00:17.7]} 33. Rg2 {[%clk 0:00:37.2]}
33... Rc4 {[%clk 0:00:14.6]} 34. Nd4 {[%clk 0:00:35.9]} 34... f6 {[%clk
0:00:13.9]} 35. Re1 {[%clk 0:00:28.2]} 35... Rxc3 {[%clk 0:00:12.6]} 36. gxf5
{[%clk 0:00:26.6]} 36... e5 {[%clk 0:00:12.9]} 37. Nc6 {[%clk 0:00:23.5]} 37...
Rcxc6 {[%clk 0:00:10.4]} 38. bxc6 {[%clk 0:00:23.1]} 38... Rxc6 {[%clk
0:00:11.3]} 39. Rb1 {[%clk 0:00:22.3]} 39... Rc8 {[%clk 0:00:09.2]} 40. Rb6
{[%clk 0:00:22]} 40... Nxf5 {[%clk 0:00:09.1]} 41. Rxf6 {[%clk 0:00:21.9]} 41...
Ne3 {[%clk 0:00:09.2]} 42. Rg5 {[%clk 0:00:19.9]} 42... d4 {[%clk 0:00:07.7]}
43. Rd6 {[%clk 0:00:19.6]} 43... Rg8 {[%clk 0:00:06]} 44. Rxg8+ {[%clk
0:00:18.6]} 44... Kxg8 {[%clk 0:00:06.9]} 45. Kf2 {[%clk 0:00:18.6]} 45... Kf7
{[%clk 0:00:07.2]} 46. Ke2 {[%clk 0:00:18.4]} 46... Nc4 {[%clk 0:00:06.3]} 47.
Ra6 {[%clk 0:00:16.4]} 47... h5 {[%clk 0:00:04.1]} 48. Kd3 {[%clk 0:00:16.3]}
48... Nb2+ {[%clk 0:00:04.1]} 49. Ke4 {[%clk 0:00:16.2]} 49... Nxa4 {[%clk
0:00:05]} 50. Rxa5 {[%clk 0:00:15.9]} 50... Nc3+ {[%clk 0:00:05.3]} 51. Kd3
{[%clk 0:00:15.1]} 51... Kf6 {[%clk 0:00:04.2]} 52. f4 {[%clk 0:00:15.2]} 52...
exf4 {[%clk 0:00:04]} 53. Kxd4 {[%clk 0:00:15.5]} 53... Ne2+ {[%clk 0:00:04.9]}
54. Ke4 {[%clk 0:00:15.5]} 54... Ng1 {[%clk 0:00:04.1]} 55. Rxh5 {[%clk
0:00:14.7]} 55... f3 {[%clk 0:00:04]} 56. Ke3 {[%clk 0:00:14.3]} 56... Kg6
{[%clk 0:00:04]} 57. Rh4 {[%clk 0:00:14.7]} 57... Kg5 {[%clk 0:00:04.5]} 58.
Rg4+ {[%clk 0:00:15]} 58... Kh5 {[%clk 0:00:04.8]} 59. Rxg1 {[%clk 0:00:15.7]}
59... Kh4 {[%clk 0:00:04.9]} 60. Kxf3 {[%clk 0:00:15.7]} 60... Kxh3 {[%clk
0:00:05.8]} 61. Rh1# {[%clk 0:00:15.5]} 1-0

[Event "Early-Titled-Tuesday-Blitz-April-02-2024"]
[Site "Chess.com"]
[Date "2024.04.02"]
[Round "5"]
[White "PawnEatingZombie"]
[Black "Rosh1610"]
[Result "1/2-1/2"]
[WhiteElo "2190"]
[BlackElo "2442"]
[TimeControl "180+1"]
[EndTime "8:56:17 PDT"]
[Termination "Game drawn by repetition"]

1. e4 {[%clk 0:03:00.9]} 1... c5 {[%clk 0:02:59.2]} 2. c3 {[%clk 0:03:00.3]}
2... d5 {[%clk 0:02:57.7]} 3. exd5 {[%clk 0:03:00.1]} 3... Qxd5 {[%clk
0:02:58.6]} 4. d4 {[%clk 0:03:00.2]} 4... Nf6 {[%clk 0:02:54.1]} 5. Nf3 {[%clk
0:02:59.6]} 5... Nc6 {[%clk 0:02:52.2]} 6. Be2 {[%clk 0:02:28.2]} 6... e6 {[%clk
0:02:46.3]} 7. Be3 {[%clk 0:02:25.6]} 7... cxd4 {[%clk 0:02:27.4]} 8. cxd4
{[%clk 0:02:24.9]} 8... Bb4+ {[%clk 0:02:27.2]} 9. Nc3 {[%clk 0:02:23.3]} 9...
O-O {[%clk 0:02:28.1]} 10. O-O {[%clk 0:02:22.4]} 10... Qd8 {[%clk 0:02:26.8]}
11. Qb3 {[%clk 0:01:58]} 11... Be7 {[%clk 0:01:58.7]} 12. Rfd1 {[%clk
0:01:57.4]} 12... b6 {[%clk 0:01:56.4]} 13. d5 {[%clk 0:01:48.5]} 13... exd5
{[%clk 0:01:54.3]} 14. Nxd5 {[%clk 0:01:47.9]} 14... Nxd5 {[%clk 0:01:53.9]} 15.
Rxd5 {[%clk 0:01:41.6]} 15... Qc7 {[%clk 0:01:26.5]} 16. Rdd1 {[%clk 0:00:55.9]}
16... Bb7 {[%clk 0:01:15.6]} 17. Rac1 {[%clk 0:00:54.9]} 17... Rac8 {[%clk
0:01:15.5]} 18. Qc2 {[%clk 0:00:32.9]} 18... Rfd8 {[%clk 0:01:07.9]} 19. Rxd8+
{[%clk 0:00:30.8]} 19... Qxd8 {[%clk 0:01:08.8]} 20. Qf5 {[%clk 0:00:30.5]}
20... Bf6 {[%clk 0:01:02.1]} 21. Rd1 {[%clk 0:00:28.7]} 21... Qf8 {[%clk
0:00:58.6]} 22. b3 {[%clk 0:00:28.3]} 22... Ne7 {[%clk 0:00:57]} 23. Qg4 {[%clk
0:00:26.4]} 23... Bc6 {[%clk 0:00:51.8]} 24. h4 {[%clk 0:00:24.7]} 24... g6
{[%clk 0:00:50.9]} 25. h5 {[%clk 0:00:24.2]} 25... Nf5 {[%clk 0:00:50.2]} 26.
Bg5 {[%clk 0:00:20.2]} 26... Bg7 {[%clk 0:00:47.9]} 27. hxg6 {[%clk 0:00:18.7]}
27... hxg6 {[%clk 0:00:48.8]} 28. Bc4 {[%clk 0:00:12.1]} 28... b5 {[%clk
0:00:43.5]} 29. Bf1 {[%clk 0:00:11.3]} 29... Qc5 {[%clk 0:00:32.1]} 30. Nh4
{[%clk 0:00:05.7]} 30... Re8 {[%clk 0:00:16.8]} 31. Nxf5 {[%clk 0:00:05.5]}
31... gxf5 {[%clk 0:00:17.7]} 32. Qh4 {[%clk 0:00:05.3]} 32... Qc2 {[%clk
0:00:12]} 33. Rd8 {[%clk 0:00:02.1]} 33... Rxd8 {[%clk 0:00:10.9]} 34. Bxd8
{[%clk 0:00:02.1]} 34... Qxa2 {[%clk 0:00:07.6]} 35. Bf6 {[%clk 0:00:02.7]}
35... Qd2 {[%clk 0:00:06.2]} 36. Qg3 {[%clk 0:00:01.7]} 36... Qh6 {[%clk
0:00:05.8]} 37. Bxg7 {[%clk 0:00:01.9]} 37... Qxg7 {[%clk 0:00:06]} 38. Qb8+
{[%clk 0:00:02.8]} 38... Kh7 {[%clk 0:00:06.2]} 39. Qxa7 {[%clk 0:00:03.5]}
39... Qg6 {[%clk 0:00:06]} 40. Qe3 {[%clk 0:00:03.9]} 40... Be4 {[%clk 0:00:06]}
41. Qc5 {[%clk 0:00:03.7]} 41... Kg7 {[%clk 0:00:06.1]} 42. Qxb5 {[%clk
0:00:03.8]} 42... f4 {[%clk 0:00:06.1]} 43. Qe5+ {[%clk 0:00:04.4]} 43... Kh7
{[%clk 0:00:05.6]} 44. Qxf4 {[%clk 0:00:05]} 44... Bd5 {[%clk 0:00:05.3]} 45.
Qe3 {[%clk 0:00:05.3]} 45... Kg7 {[%clk 0:00:05.4]} 46. Bd3 {[%clk 0:00:05.3]}
46... Qf6 {[%clk 0:00:04.7]} 47. Qg3+ {[%clk 0:00:05.4]} 47... Kf8 {[%clk
0:00:04.6]} 48. Qb8+ {[%clk 0:00:05.2]} 48... Kg7 {[%clk 0:00:05]} 49. Qg3+
{[%clk 0:00:05.6]} 49... Kh6 {[%clk 0:00:05]} 50. Qh3+ {[%clk 0:00:05.4]} 50...
Kg7 {[%clk 0:00:05.4]} 51. Qg3+ {[%clk 0:00:05.8]} 1/2-1/2